bitfinex/quotes_ETHUSD_20250622
["timestamp","ask_amount","ask_price","bid_price","bid_amount"]
[1750605138551,8.492,2196.8,2196.7,5.10209492]
[1750605138756,10.939,2196.9,2196.8,4.55207574]
[1750605139001,0.7875,2197.3,2196.7,5.10209492]
[1750605139002,0.7875,2197.3,2196.7,5.1022301]
[1750605139293,11.004,2197.2,2196.9,0.55]
[1750605139590,8.483,2197.1,2196.9,0.55]
[1750605139795,8.483,2197.1,2197.0,4.55156593]
[1750605140013,0.7875,2197.6,2197.0,0.55]
[1750605140303,13.0247175,2197.5,2196.7,15.1675828]
[1750605140469,4.55115039,2197.3,2196.7,4.55217231]
[1750605140672,4.5466979,2197.3,2196.8,4.55204034]
[1750605140859,4.55150793,2197.1,2196.6,0.55]
[1750605141220,0.8297,2197.3,2196.6,0.55]
[1750605141372,11.002,2197.0,2196.7,4.55210875]
[1750605141554,11.002,2197.0,2196.6,5.1024634]
[1750605141758,4.55198185,2196.9,2196.4,0.55]
[1750605141954,17.10903673,2197.0,2196.5,10.0]
[1750605142153,12.55732599,2197.0,2196.0,0.7952]
[1750605142388,4.55269747,2196.5,2195.6,0.7952]
[1750605142594,4.55322938,2196.3,2195.7,4.5542132]
[1750605142838,15.54899147,2196.4,2195.9,10.0]
[1750605143127,4.55311695,2196.3,2195.8,4.55412296]
[1750605143329,10.0,2196.3,2195.0,0.7952]
[1750605143535,4.55409342,2195.9,2195.0,0.7952]
[1750605143732,8.476,2195.8,2195.0,10.7952]
[1750605143890,15.55144758,2195.7,2195.0,0.7952]
[1750605144095,2.521,2196.3,2195.7,4.55432407]
[1750605144413,4.55323419,2196.3,2195.7,4.55432959]
[1750605144590,4.55283695,2196.5,2195.6,10.0]
[1750605144591,11.022,2196.2,2195.9,0.55]
[1750605144797,16.30031433,2196.7,2195.9,5.10389326]
[1750605145132,16.30031433,2196.7,2195.7,0.7697]
[1750605145133,2.521,2196.4,2196.1,0.55]
[1750605145438,2.521,2196.4,2195.8,4.55408553]
[1750605145439,2.521,2196.4,2196.0,0.55]
[1750605145658,4.55292224,2196.4,2195.8,5.10399272]
[1750605145939,11.015,2196.3,2195.9,4.55390298]
[1750605146145,14.83323248,2196.7,2196.0,5.10366494]
[1750605146435,11.013,2196.6,2196.1,4.55341019]
[1750605146641,19.76455623,2196.7,2196.3,4.55297249]
[1750605146642,11.01,2196.5,2196.3,4.55297249]
[1750605147007,11.38893077,2196.5,2196.3,4.55297249]
[1750605147316,11.38893077,2196.5,2196.1,4.55350248]
[1750605147493,11.38893077,2196.5,2196.2,0.55]
[1750605147494,11.01,2196.5,2196.2,0.55]
[1750605147701,11.01,2196.5,2196.0,10.55]
[1750605147702,17.75762553,2196.5,2196.0,10.55]
[1750605148230,11.01,2196.5,2195.3,0.7641]
[1750605148436,15.32150953,2196.3,2195.3,0.7641]
[1750605148594,4.55355229,2196.1,2195.7,0.55]
[1750605148797,2.521,2196.0,2195.4,4.55497859]
[1750605149075,2.521,2196.0,2194.7,0.2268913]
[1750605149076,0.7683,2195.8,2194.7,0.2268913]
[1750605149346,0.41917605,2195.7,2194.7,4.78321374]
[1750605149652,14.97384837,2195.6,2194.7,0.2268913]
[1750605149794,11.027,2195.5,2194.8,4.60174952]
[1750605149991,4.55554142,2195.2,2194.7,0.2268913]
[1750605150215,8.503,2195.1,2194.7,0.2268913]
[1750605150432,4.55614798,2194.9,2194.7,0.2268913]
[1750605150635,4.5562238,2194.8,2194.7,0.2268913]
[1750605150806,15.5812238,2194.8,2194.7,0.2268913]
[1750605152215,0.42143381,2194.8,2194.7,0.2268913]
[1750605152414,0.42143381,2194.8,2194.7,4.7833227]
[1750605152636,8.489,2195.1,2195.0,0.55]
[1750605152857,2.522,2195.3,2195.2,5.10539358]
[1750605153212,2.569,2195.6,2195.4,0.55]
[1750605153411,8.91590473,2195.5,2195.0,4.55568554]
[1750605153649,8.91590473,2195.5,2194.8,4.5562238]
[1750605153650,8.495,2195.5,2194.8,0.55]
[1750605153946,11.48191458,2195.4,2195.0,0.55]
[1750605154156,11.058,2195.3,2195.0,0.55]
[1750605154325,0.42198769,2195.2,2195.0,5.10579481]
[1750605154648,4.55460191,2195.6,2195.2,0.55]
[1750605154946,11.4739925,2195.5,2195.3,5.10506085]
[1750605155122,0.4219925,2195.4,2195.1,0.55]
[1750605155311,0.4219925,2195.3,2195.1,0.55]
[1750605155519,2.569,2195.4,2195.3,0.55]
[1750605155815,8.90215826,2195.4,2195.3,5.10516399]
[1750605156212,8.80215826,2195.4,2195.3,5.10516399]
[1750605156412,2.569,2195.9,2195.7,0.55]
[1750605156649,0.7775,2196.3,2195.8,10.55]
[1750605156854,10.942,2196.6,2196.0,0.55]
[1750605157025,10.942,2196.6,2196.2,0.55]
[1750605157225,10.942,2196.6,2196.2,5.10321521]
[1750605157226,11.043,2196.5,2196.2,5.10321521]
[1750605157438,10.942,2196.6,2196.2,5.10318295]
[1750605157630,11.043,2196.5,2196.4,0.55]
[1750605157937,11.043,2196.5,2196.3,0.55]
[1750605158330,11.043,2196.5,2196.1,0.55]
[1750605158850,11.043,2196.5,2196.1,5.10336202]
[1750605159152,8.461,2196.5,2196.3,5.10299378]
[1750605159351,8.461,2196.5,2196.3,5.10301483]
[1750605159518,8.461,2196.5,2196.4,4.55290475]
[1750605159850,8.465,2196.5,2196.4,5.10290475]
[1750605160053,2.569,2197.0,2196.6,0.55]
[1750605160221,13.511,2197.4,2197.2,4.5512222]
[1750605160416,10.942,2197.4,2197.1,0.55]
[1750605160622,13.511,2197.4,2197.3,5.10103991]
[1750605160843,10.7775,2198.1,2197.6,4.55040342]
[1750605161042,15.58363353,2198.0,2197.5,0.55]
[1750605161353,8.466,2197.9,2197.7,0.55]
[1750605161753,13.01586505,2197.9,2197.3,4.551017]
[1750605161962,8.466,2197.9,2197.4,5.10078471]
[1750605162177,8.466,2197.9,2197.4,0.55]
[1750605162524,8.466,2197.9,2197.4,5.1007982]
[1750605162724,10.0244471,2197.9,2197.4,5.1007982]
[1750605162935,10.0244471,2197.9,2197.2,0.55]
[1750605163153,10.0244471,2197.9,2197.4,4.55076165]
[1750605163371,10.0244471,2197.9,2197.4,0.55]
[1750605163683,0.90423754,2199.6,2198.0,0.55]
[1750605163825,0.90423754,2199.6,2199.2,5.09694011]
[1750605164025,0.66666667,2199.6,2199.2,0.55]
[1750605164227,0.66666667,2199.6,2199.5,4.54648783]
[1750605164537,0.66666667,2199.6,2199.0,0.55]
[1750605164726,8.86346667,2199.5,2199.0,0.55]
[1750605165236,8.86346667,2199.5,2198.9,0.55]
[1750605165651,13.41001727,2199.5,2198.8,0.55]
[1750605166175,8.86346667,2199.5,2198.8,5.09780572]
[1750605166692,13.40997015,2199.5,2198.8,5.09780572]
[1750605166846,2.19946368,2199.4,2198.8,0.46491807]
[1750605167055,2.19946368,2199.4,2198.2,10.0]
[1750605167251,4.54713249,2199.2,2198.6,10.0]
[1750605167450,15.63639662,2199.1,2197.8,19.26332115]
[1750605167752,4.54799413,2198.8,2198.1,4.54923472]
[1750605167964,8.522,2198.7,2198.1,4.54923472]
[1750605168168,2.98639796,2198.6,2198.1,0.44894112]
[1750605168381,2.567,2198.6,2198.0,4.54940363]
[1750605168546,11.083,2198.5,2197.8,24.71335461]
[1750605168749,8.513,2198.4,2198.3,0.55]
[1750605168932,8.513,2198.4,2198.3,5.09896965]
[1750605169134,10.934,2198.8,2198.3,0.55]
[1750605169366,10.934,2198.8,2198.5,4.54853571]
[1750605169672,8.512,2198.7,2198.6,4.54834894]
[1750605170169,8.512,2198.7,2198.5,5.09846567]
[1750605170373,8.512,2198.7,2198.6,4.54834894]
[1750605170548,8.512,2198.7,2198.5,5.09848095]
[1750605170756,8.512,2198.7,2198.6,4.54834894]
[1750605171141,8.512,2198.7,2198.5,5.0985157]
[1750605171370,8.512,2198.7,2198.6,4.54834894]
[1750605171739,8.512,2198.7,2198.5,5.09847563]
[1750605172275,8.512,2198.7,2198.6,4.54834894]
[1750605172475,8.512,2198.7,2198.5,0.55]
[1750605172881,8.512,2198.7,2198.6,4.54834894]
[1750605173380,8.477,2198.7,2198.6,5.09834894]
[1750605173583,10.934,2198.8,2198.6,5.09834894]
[1750605173746,2.567,2199.2,2199.0,4.54741414]
[1750605173945,1.40766368,2199.4,2199.1,4.54728965]
[1750605174142,11.037,2199.3,2199.2,4.54690908]
[1750605174384,0.66666667,2199.6,2199.3,5.0967646]
[1750605174579,0.66666667,2199.6,2199.5,5.09648783]
[1750605175293,9.13466667,2199.6,2199.5,5.09648783]
[1750605175844,0.66666667,2199.6,2199.5,15.09648783]
[1750605176271,0.66666667,2199.6,2199.5,15.91388783]
[1750605176606,8.04503865,2199.9,2199.8,15.0958678]
[1750605176786,8.04503865,2199.9,2199.8,29.80922241]
[1750605176982,3.24065804,2199.9,2199.8,29.80922241]
[1750605177648,0.53525804,2199.9,2199.8,30.62662241]
[1750605177969,12.8544068,2200.0,2199.9,15.09566116]
[1750605178688,12.8544068,2200.0,2199.7,4.5460011]
[1750605178886,12.8544068,2200.0,2199.9,14.54566116]
[1750605179093,21.3334068,2200.0,2199.8,10.0]
[1750605179289,12.8544068,2200.0,2198.3,0.8174]
[1750605179488,4.5458678,2199.8,2199.0,4.54739709]
[1750605179653,4.54612371,2199.7,2199.1,4.54726226]
[1750605179853,11.066,2199.6,2199.1,4.54719842]
[1750605180186,11.066,2199.6,2199.1,4.54731431]
[1750605180410,0.8188,2199.3,2198.4,14.71335461]
[1750605180610,4.54687459,2199.4,2197.9,5.33324392]
[1750605180611,0.8188,2198.9,2197.9,5.33324392]
[1750605180780,0.8188,2198.9,2197.6,14.71335461]
[1750605180781,10.925,2198.8,2198.0,14.71335461]
[1750605180981,2.565,2198.7,2198.4,14.71335461]
[1750605181182,13.82137975,2198.6,2197.9,5.34022333]
[1750605181413,4.54890592,2198.4,2197.7,4.55012388]
[1750605181713,8.505,2198.3,2197.7,0.84055413]
[1750605182010,2.565,2198.2,2197.9,0.55]
[1750605182213,11.07,2198.1,2197.9,0.55]
[1750605182503,6.38591989,2198.4,2197.8,4.55000455]
[1750605182504,1.83703618,2198.4,2197.8,4.55000455]
[1750605182704,2.566,2198.0,2197.8,4.55000455]
[1750605183006,8.5,2197.9,2197.8,14.55000455]
[1750605183411,1.83703618,2198.4,2197.9,4.54964836]
[1750605183620,11.063,2198.3,2198.1,4.54923519]
[1750605183820,11.063,2198.3,2197.9,5.09968395]
[1750605184145,11.063,2198.3,2198.2,5.09917659]
[1750605184333,0.7709,2198.6,2198.2,0.55]
[1750605184633,3.3429,2199.2,2199.1,4.54731481]
[1750605184782,11.061,2199.2,2199.1,4.54731481]
[1750605184978,11.6969,2199.6,2199.2,0.55]
[1750605185287,11.061,2199.5,2199.3,4.54675939]
[1750605185502,2.572,2199.5,2199.4,15.09669455]
[1750605185693,8.489,2199.9,2199.7,4.54589868]
[1750605186116,8.489,2199.9,2199.6,10.0]
[1750605186615,8.489,2199.9,2199.3,0.55]
[1750605186802,8.489,2199.9,2199.3,15.09686251]
[1750605187112,8.489,2199.9,2198.8,0.8236]
[1750605187113,10.95630068,2199.9,2199.0,10.55]
[1750605187311,11.062,2199.8,2199.5,4.54648336]
[1750605187527,11.06,2199.7,2199.5,4.54640138]
[1750605188112,11.06,2199.7,2199.4,0.55]
[1750605188418,11.06,2199.7,2199.4,5.09660677]
[1750605189214,2.572,2199.7,2199.6,4.54617541]
[1750605189525,12.8544068,2200.0,2199.9,5.09566116]
[1750605189676,12.8544068,2200.0,2199.9,19.80901577]
[1750605190576,12.8544068,2200.0,2199.5,10.8236]
[1750605190783,12.8544068,2200.0,2199.9,4.54566116]
[1750605191117,13.27593122,2200.0,2199.8,4.54580807]
[1750605191415,8.477,2199.9,2199.6,4.54628114]
[1750605191732,8.477,2199.9,2199.7,4.54598313]
[1750605192017,12.8544068,2200.0,2199.8,4.54573965]
[1750605192315,11.04,2199.9,2199.8,4.54575384]
[1750605192475,11.04,2199.9,2199.7,5.09602402]
[1750605192675,11.04,2199.9,2199.5,10.0]
[1750605193014,11.04,2199.9,2199.8,4.5458678]
[1750605193713,15.4264068,2200.0,2199.9,5.09566116]
[1750605193914,15.84903542,2200.0,2199.8,14.71335461]
[1750605194228,23.8844068,2200.0,2199.8,14.71335461]
[1750605195020,23.8844068,2200.0,2199.5,14.71335461]
[1750605195021,1.59567881,2199.9,2199.5,14.71335461]
[1750605195318,0.7566,2202.2,2201.3,0.55]
[1750605195529,0.7566,2202.2,2201.4,24.71335461]
[1750605195727,13.13412694,2202.1,2201.4,29.25579622]
[1750605196026,3.96107269,2202.0,2201.4,14.71335461]
[1750605196323,3.96107269,2202.0,2201.2,4.54292193]
[1750605196529,5.29828223,2201.9,2201.2,4.54286567]
[1750605196734,13.12878698,2201.8,2201.2,4.54286567]
[1750605197148,8.587,2201.8,2201.2,4.54286567]
[1750605197330,8.584,2201.7,2201.4,14.71335461]
[1750605197493,8.584,2201.7,2201.6,4.54215116]
[1750605197894,8.584,2201.7,2201.6,4.99747433]
[1750605199310,8.573,2201.9,2201.8,4.54173857]
[1750605199498,8.573,2201.9,2201.8,14.71335461]
[1750605199696,10.02331958,2201.9,2201.5,14.71335461]
[1750605199928,11.14,2201.8,2201.5,15.16018343]
[1750605200134,0.8094,2201.7,2201.2,14.71335461]
[1750605200336,0.8094,2201.7,2201.2,19.25631666]
[1750605200503,8.565,2201.6,2201.5,4.54235125]
[1750605201045,9.75944,2201.6,2201.5,0.45628551]
[1750605201203,9.75944,2201.6,2201.2,14.71335461]
[1750605201834,9.75944,2201.6,2201.3,10.0]
[1750605202132,9.75944,2201.6,2201.3,14.54259759]
[1750605202133,8.563,2201.5,2201.3,14.54259759]
[1750605202321,8.563,2201.5,2201.4,4.54256382]
[1750605202702,6.73989789,2202.0,2201.4,4.54256382]
[1750605202703,8.563,2201.9,2201.4,14.54256382]
[1750605203038,1.07614727,2201.8,2201.6,14.71335461]
[1750605203738,1.07614727,2201.8,2201.4,10.0]
[1750605203916,5.61789616,2201.8,2201.4,10.0]
[1750605204316,7.11205146,2201.7,2201.4,10.0]
[1750605204517,8.565,2201.6,2201.4,10.0]
[1750605204828,1.1135,2201.5,2201.3,15.17382289]
[1750605205142,9.6645,2201.5,2201.3,15.17382289]
[1750605206228,4.54256382,2201.4,2201.3,0.46046828]
[1750605206429,5.33966382,2201.4,2201.1,10.0]
[1750605206764,8.54,2201.3,2201.1,10.0]
[1750605206904,1.38796684,2201.2,2201.1,10.0]
[1750605207104,8.54,2201.3,2201.1,10.45629624]
[1750605207719,8.54,2201.3,2201.1,14.99937437]
[1750605207936,8.54,2201.3,2201.2,4.54297655]
[1750605208238,8.54,2201.3,2201.2,14.54297655]
[1750605208834,2.57,2201.8,2201.6,4.54214076]
[1750605209014,8.519,2201.6,2201.5,29.25571209]
[1750605209404,2.57,2201.8,2201.7,4.54194486]
[1750605209641,2.57,2202.3,2202.2,4.54091363]
[1750605209847,10.915,2203.0,2202.2,4.54091363]
[1750605209848,8.516,2202.6,2202.5,4.54012363]
[1750605210011,2.57,2202.7,2202.6,4.54008898]
[1750605210339,11.086,2202.7,2202.6,4.54008898]
[1750605210550,4.07948602,2203.4,2203.1,4.53893789]
[1750605210855,8.513,2203.2,2203.1,14.99881093]
[1750605211057,4.07948602,2203.4,2203.3,4.53864657]
[1750605211352,11.085,2203.4,2203.2,4.53881226]
[1750605211516,11.085,2203.4,2203.1,10.45975234]
[1750605211950,11.085,2203.4,2203.1,14.99870498]
[1750605212257,8.511,2203.3,2203.1,14.99880341]
[1750605212446,8.511,2203.3,2203.1,10.45975234]
[1750605212759,9.64178913,2203.3,2202.4,0.7685]
[1750605212955,0.7637,2203.1,2202.4,14.71335461]
[1750605213138,13.05040069,2203.0,2202.5,10.0]
[1750605213340,0.7637,2203.1,2202.5,4.54029511]
[1750605213642,8.518,2203.2,2202.8,14.71335461]
[1750605213816,8.518,2203.2,2202.9,10.0]
[1750605214160,8.518,2203.2,2203.1,4.53905859]
[1750605214468,8.518,2203.2,2202.9,10.0]
[1750605215035,8.518,2203.2,2202.8,14.71335461]
[1750605215036,8.518,2203.2,2202.4,10.45947949]
[1750605215354,0.7637,2202.8,2202.4,0.45947949]
[1750605215669,11.114,2202.7,2202.6,10.0]
[1750605215877,11.114,2202.7,2202.5,10.0]
[1750605216847,4.54019805,2202.6,2202.4,0.46484781]
[1750605217125,1.1114,2202.6,2202.3,10.0]
[1750605217630,2.591,2202.8,2202.5,10.0]
[1750605217931,8.509,2202.7,2202.6,14.54008898]
[1750605218345,0.7637,2203.1,2202.6,10.0]
[1750605218546,8.507,2202.9,2202.8,29.25303138]
[1750605218948,8.507,2202.9,2202.8,24.71335461]
[1750605219239,8.507,2202.9,2202.8,29.25303138]
[1750605219851,8.507,2202.9,2202.8,29.71497258]
[1750605220046,8.507,2202.9,2202.8,25.17529581]
[1750605221175,8.507,2202.9,2202.8,29.71497258]
[1750605221387,8.507,2202.9,2202.8,25.17529581]
[1750605223467,8.507,2202.9,2202.8,29.71497258]
[1750605223764,0.806,2203.2,2202.7,14.71335461]
[1750605223966,0.806,2203.2,2202.8,4.53955972]
[1750605224287,11.047,2203.1,2202.9,4.53928605]
[1750605224464,11.047,2203.1,2202.7,15.17475043]
[1750605224655,11.047,2203.1,2202.7,19.71453561]
[1750605224966,4.53967677,2202.8,2202.7,0.46139582]
[1750605225163,8.454,2202.8,2202.4,10.0]
[1750605225374,8.454,2202.8,2202.5,4.54027703]
[1750605225543,8.454,2202.8,2202.7,14.71335461]
[1750605225970,8.445,2202.9,2202.7,14.71335461]
[1750605226359,8.445,2202.9,2202.8,10.0]
[1750605226678,2.59,2203.1,2202.8,14.53967677]
[1750605226968,8.445,2203.0,2202.8,10.0]
[1750605227352,8.445,2203.0,2202.8,14.53966754]
[1750605227562,8.445,2203.0,2202.8,10.0]
[1750605229141,8.445,2203.0,2202.9,12.24838038]
[1750605229944,8.445,2203.0,2202.5,0.44671587]
[1750605230281,4.53976864,2202.8,2202.4,10.0]
[1750605230491,8.423,2202.7,2202.4,10.45243624]
[1750605230640,8.423,2202.7,2202.4,14.99291277]
[1750605230975,8.423,2202.7,2202.4,10.45243624]
[1750605231282,1.45201062,2202.7,2202.6,12.24838038]
[1750605231585,11.015,2202.7,2202.6,12.24838038]
[1750605231884,13.498,2202.8,2202.6,16.78837915]
[1750605232040,8.416,2202.7,2202.6,16.78837915]
[1750605232247,8.427,2202.7,2202.6,12.24838038]
[1750605232447,8.427,2202.7,2202.6,16.78846936]
[1750605232643,8.427,2202.7,2202.6,26.78846936]
[1750605233088,10.908,2202.8,2202.7,14.53988287]
[1750605233285,8.421,2202.9,2202.8,14.5396178]
[1750605233449,8.421,2202.9,2202.8,26.78799818]
[1750605234205,8.416,2203.0,2202.9,4.53933869]
[1750605234849,2.59,2203.3,2203.1,4.53905078]
[1750605235079,2.87168913,2203.3,2203.2,12.24838038]
[1750605235397,11.27568913,2203.3,2203.2,12.24838038]
[1750605235991,0.2268913,2203.5,2203.2,12.24838038]
[1750605236279,8.402,2203.4,2203.3,4.53844969]
[1750605237051,2.8168913,2203.5,2203.4,14.53844059]
[1750605237274,11.2128913,2203.5,2203.4,14.53844059]
[1750605237448,11.2088913,2203.5,2203.4,14.53844059]
[1750605237956,2.8168913,2203.5,2203.4,14.53844059]
[1750605238161,10.908,2203.7,2203.5,14.53823462]
[1750605238387,2.59,2204.4,2203.9,10.0]
[1750605238572,2.59,2204.4,2204.3,16.78496795]
[1750605238892,2.59,2204.4,2204.3,12.24838038]
[1750605239046,4.53671319,2204.3,2203.8,16.78598678]
[1750605239247,11.012,2204.4,2204.1,16.78528136]
[1750605239558,11.013,2204.4,2204.3,4.53658757]
[1750605239759,2.59,2204.4,2204.3,4.53658757]
[1750605240171,4.53501015,2205.1,2204.2,4.53678691]
[1750605240172,2.59,2204.8,2204.2,10.55]
[1750605240371,2.59,2204.8,2204.7,12.24838038]
[1750605240554,11.3551,2204.8,2204.7,12.24838038]
[1750605241951,11.3551,2204.8,2204.4,12.24838038]
[1750605241952,15.89065878,2204.8,2204.4,12.24838038]
[1750605242152,4.53597024,2204.6,2203.3,0.7889]
[1750605242365,4.53597024,2204.6,2203.3,12.24838038]
[1750605242366,4.53819234,2203.6,2203.3,12.24838038]
[1750605242566,4.53854062,2203.4,2203.0,12.24838038]
[1750605242771,8.419,2203.3,2203.0,16.78764435]
[1750605243100,8.419,2203.3,2203.0,16.787499]
[1750605243400,8.413,2203.4,2203.1,14.53895239]
[1750605243559,8.413,2203.4,2203.0,12.24838038]
[1750605243560,4.53879207,2203.3,2203.0,12.24838038]
[1750605243760,9.5132,2203.4,2203.0,12.24838038]
[1750605244000,4.53888167,2203.2,2203.0,12.24838038]
[1750605244171,0.7733,2203.3,2203.0,12.24838038]
[1750605244362,2.528,2203.2,2203.0,12.24838038]
[1750605244563,2.528,2203.6,2203.1,19.7499]
[1750605244763,2.528,2203.6,2203.5,12.24838038]
[1750605244962,4.53895679,2203.2,2202.9,12.24838038]
[1750605245166,9.1873,2203.2,2202.8,19.1609506]
[1750605245459,2.528,2203.1,2202.8,14.62137735]
[1750605245999,2.528,2203.1,2202.9,10.0]
[1750605246171,2.528,2203.1,2202.9,14.53944463]
[1750605246373,2.528,2203.1,2202.9,14.53941108]
[1750605246581,2.528,2203.1,2203.0,4.53926463]
[1750605246959,2.528,2203.1,2203.0,10.0]
[1750605247186,2.7808,2203.1,2203.0,10.0]
[1750605247413,2.528,2203.1,2203.0,10.0]
[1750605249065,2.528,2203.1,2203.0,14.53926463]
[1750605249513,2.528,2203.1,2203.0,10.0]
[1750605252507,10.919,2203.1,2202.8,14.62137735]
[1750605253814,15.45806083,2203.1,2202.8,14.62137735]
[1750605253987,1.54580608,2203.0,2202.8,14.62137735]
[1750605254604,10.919,2203.1,2202.9,4.53930516]
[1750605254803,10.919,2203.1,2202.8,19.16099729]
[1750605255021,15.45806258,2203.1,2202.8,14.62137735]
[1750605255497,10.919,2203.1,2202.8,14.62137735]
[1750605256305,10.919,2203.1,2202.4,4.74684405]
[1750605256306,0.8178,2203.0,2202.4,19.3682214]
[1750605256514,4.53980862,2202.8,2202.4,14.62137735]
[1750605256713,8.391,2202.7,2202.5,10.0]
[1750605256927,2.529,2202.6,2202.5,10.0]
[1750605257225,2.529,2202.6,2202.5,14.54029511]
[1750605257598,2.529,2202.6,2202.4,14.62137735]
[1750605257998,2.529,2202.6,2202.5,10.0]
[1750605258197,2.529,2202.6,2202.5,14.54029511]
[1750605258628,2.529,2202.6,2202.5,10.0]
[1750605258829,2.529,2202.6,2202.5,14.54029511]
[1750605259338,2.529,2202.6,2202.5,10.0]
[1750605260040,4.07496914,2202.6,2202.4,14.62137735]
[1750605260425,2.529,2202.6,2202.5,4.54029511]
[1750605262349,2.529,2202.6,2202.5,14.54029511]
[1750605264431,2.529,2202.6,2202.4,14.62137735]
[1750605264750,0.7521,2202.4,2202.3,4.54070744]
[1750605264954,8.39,2202.4,2202.3,10.0]
[1750605265124,9.55711,2202.4,2202.2,14.62137735]
[1750605265530,9.55711,2202.4,2201.9,14.62137735]
[1750605265724,1.16711,2202.4,2202.2,4.54074058]
[1750605265938,0.7521,2202.7,2202.0,4.54122633]
[1750605265939,15.4593126,2202.5,2202.0,4.54122633]
[1750605266660,4.54059689,2202.4,2201.9,19.162862]
[1750605266949,10.919,2202.5,2201.9,19.162862]
[1750605266950,15.45940432,2202.5,2201.9,19.162862]
[1750605267141,4.54050998,2202.4,2202.0,12.25815953]
[1750605267651,10.919,2202.5,2202.0,4.54126514]
[1750605267824,1.0919,2202.4,2202.0,4.54119422]
[1750605268255,5.63242797,2202.4,2201.9,12.25815953]
[1750605268457,4.54085305,2202.3,2201.9,12.25815953]
[1750605268686,13.75993089,2202.2,2201.9,12.25815953]
[1750605268830,4.54115772,2202.1,2201.6,14.54210006]
[1750605269036,2.529,2202.0,2201.4,12.25815953]
[1750605269252,2.529,2202.0,2201.7,16.79997249]
[1750605269253,8.39,2201.9,2201.7,16.79997249]
[1750605269558,8.39,2201.9,2201.7,12.25815953]
[1750605270459,12.9315422,2201.9,2201.7,12.25815953]
[1750605270759,2.04621408,2201.8,2201.4,16.80070921]
[1750605270934,2.04621408,2201.8,2201.4,12.25815953]
[1750605271455,6.58812692,2201.8,2201.4,12.25815953]
[1750605271656,2.04621408,2201.8,2201.4,16.80071845]
[1750605272241,0.7541,2201.6,2200.7,0.8253]
[1750605272441,1.03413141,2201.6,2201.2,12.25815953]
[1750605272672,10.92,2201.7,2201.5,12.25815953]
[1750605272843,10.92,2201.7,2201.6,4.54215116]
[1750605273226,10.92,2201.7,2201.5,12.25815953]
[1750605273428,4.54217824,2201.6,2201.2,12.25815953]
[1750605273653,0.7541,2201.6,2201.2,4.5429178]
[1750605273863,1.66746992,2201.5,2201.2,4.5429178]
[1750605274163,8.39,2201.4,2201.2,4.5429178]
[1750605274467,8.39,2201.4,2201.3,4.54277018]
[1750605275326,1.66746992,2201.5,2201.4,4.54256382]
[1750605275671,10.9,2201.5,2201.4,4.54256382]
[1750605276034,10.909,2202.0,2201.9,4.54153231]
[1750605276295,10.909,2202.0,2201.9,16.79969184]
[1750605276572,15.45034446,2202.0,2201.6,10.0]
[1750605276742,9.202,2201.9,2201.6,14.54213998]
[1750605276945,10.14043571,2201.9,2201.6,14.54213998]
[1750605277141,10.14043571,2201.9,2201.6,10.0]
[1750605277355,10.14043571,2201.9,2201.6,14.54205027]
[1750605277873,10.14043571,2201.9,2201.7,4.54193599]
[1750605278246,0.812,2201.9,2201.8,4.54173857]
[1750605278565,11.712,2201.9,2201.8,4.54173857]
[1750605278953,10.9,2201.9,2201.7,4.54184284]
[1750605279467,4.54213808,2201.7,2201.1,4.54307456]
[1750605279689,10.9,2201.9,2200.9,12.25815953]
[1750605279690,0.812,2201.3,2200.9,12.25815953]
[1750605279979,10.9,2201.2,2201.0,10.0]
[1750605280137,10.9,2201.2,2200.9,12.25815953]
[1750605280744,10.9,2201.2,2200.9,16.80165836]
[1750605280934,10.9,2201.2,2200.9,16.80171634]
[1750605281131,10.9,2201.2,2200.9,16.80173789]
[1750605282473,12.52546183,2201.2,2200.9,12.25815953]
[1750605282637,12.52546183,2201.2,2200.9,16.80173274]
[1750605282836,12.52546183,2201.2,2200.9,12.25815953]
[1750605283050,17.0685921,2201.2,2200.9,12.25815953]
[1750605283251,4.54328001,2201.1,2200.6,16.80226722]
[1750605283539,4.54328001,2201.1,2200.7,4.54400135]
[1750605283540,8.388,2201.0,2200.7,4.54400135]
[1750605283952,8.388,2201.0,2200.6,12.25815953]
[1750605284156,5.34467648,2200.8,2200.0,16.80350196]
[1750605284365,15.44211933,2200.7,2200.0,12.25815953]
[1750605284680,6.16852898,2200.6,2200.1,10.0]
[1750605284880,8.388,2200.5,2200.0,12.25815953]
[1750605285170,0.8008,2200.4,2199.7,12.25815953]
[1750605285381,8.388,2200.5,2199.4,4.54654856]
[1750605285382,4.54581461,2199.9,2199.4,12.25815953]
[1750605285549,10.898,2199.8,2199.4,12.25815953]
[1750605285737,10.898,2199.8,2199.4,16.80466942]
[1750605285935,10.898,2199.8,2199.4,12.25815953]
[1750605286134,10.898,2199.8,2199.4,16.8048357]
[1750605286439,10.898,2199.8,2199.4,16.80471143]
[1750605286633,10.898,2199.8,2199.5,10.0]
[1750605286839,10.898,2199.8,2199.5,14.54645552]
[1750605287040,10.898,2199.8,2199.4,12.25815953]
[1750605287264,10.898,2199.8,2199.4,16.80466413]
[1750605287265,12.11268608,2199.8,2199.4,16.80466413]
[1750605287654,12.11268608,2199.8,2199.4,16.80480774]
[1750605287853,16.65856917,2199.8,2199.4,12.25815953]
[1750605288057,4.54619805,2199.7,2199.4,12.25815953]
[1750605288258,8.388,2199.6,2199.2,4.54708532]
[1750605288460,8.388,2199.6,2199.3,4.54677664]
[1750605288876,8.388,2199.6,2199.2,14.54701199]
[1750605289180,8.388,2199.6,2199.4,16.80476997]
[1750605289367,8.388,2199.6,2199.4,16.8048307]
[1750605289955,8.388,2199.6,2199.5,4.54648783]
[1750605290151,1.21468608,2199.8,2199.6,4.54622062]
[1750605290354,8.387,2200.1,2200.0,4.54545454]